bitfinex/quotes_ETHUSD_20260304
["timestamp","ask_amount","ask_price","bid_price","bid_amount"]
[1772627540168,4.67710236,2038.3,2037.7,0.0011]
[1772627540690,1.22646502,2038.4,2037.6,0.37802423]
[1772627540691,1.22645339,2038.4,2037.6,0.37802423]
[1772627540892,2.72342872,2038.5,2037.6,4.70585233]
[1772627541083,2.72342872,2038.5,2037.6,5.47606809]
[1772627541996,7.40053108,2038.5,2037.6,5.09804386]
[1772627542293,1.22635504,2038.6,2037.7,5.93272576]
[1772627542490,5.9034574,2038.6,2037.7,8.05294152]
[1772627542792,5.9034574,2038.6,2037.7,2.57687343]
[1772627542988,5.9034574,2038.6,2037.8,5.11220106]
[1772627544291,5.9034574,2038.6,2037.9,1.22675303]
[1772627544464,0.001,2038.7,2037.9,6.33895409]
[1772627544665,6.17310398,2038.7,2038.0,0.37802423]
[1772627544864,6.17310398,2038.7,2037.7,6.46320106]
[1772627545091,6.17310398,2038.7,2037.8,5.11220106]
[1772627545298,4.94583087,2038.6,2037.8,6.46320106]
[1772627546491,4.94583087,2038.6,2037.5,7.6911347]
[1772627546492,6.17222282,2038.5,2037.5,7.6911347]
[1772627546684,6.17222282,2038.5,2037.6,4.90765436]
[1772627548194,6.17222282,2038.5,2037.4,0.0011]
[1772627548195,4.94583087,2038.3,2037.4,0.0011]
[1772627548399,4.94583087,2038.1,2037.4,6.340346]
[1772627548596,0.45256019,2038.0,2037.4,6.340346]
[1772627548776,0.45256019,2037.9,2037.7,0.0011]
[1772627549132,0.45256019,2037.8,2037.7,0.0011]
[1772627549305,5.39839106,2037.8,2037.7,0.0011]
[1772627549602,0.45256019,2037.8,2037.4,1.22815102]
[1772627549792,6.17251164,2038.1,2037.4,0.0011]
[1772627549793,0.45256019,2037.7,2037.4,0.0011]
[1772627549996,0.45256019,2037.6,2037.4,0.0011]
[1772627550205,4.94583087,2037.9,2037.4,0.0011]
[1772627550507,8.29356175,2037.8,2037.4,0.0011]
[1772627550677,1.6793315,2037.7,2037.4,0.0011]
[1772627551001,0.45245807,2037.6,2037.4,0.0011]
[1772627551206,0.45245807,2037.5,2037.4,0.0011]
[1772627551909,4.90681425,2038.0,2037.4,0.0011]
[1772627551910,6.17246351,2038.1,2037.4,5.11330106]
[1772627552087,2.89436538,2038.0,2037.4,0.0011]
[1772627552284,4.94583087,2037.5,2036.5,2.49502365]
[1772627552496,2.89436538,2037.4,2036.6,5.11440106]
[1772627552682,1.22711431,2037.3,2036.7,1.22747581]
[1772627553285,1.22706174,2037.4,2036.8,0.0022]
[1772627553680,6.17289261,2037.4,2036.8,0.0022]
[1772627554376,6.17289261,2037.4,2036.5,1.26747095]
[1772627554377,4.94583087,2037.2,2036.5,2.49502145]
[1772627554709,4.94583087,2037.2,2036.6,0.0022]
[1772627555078,6.17306566,2037.1,2036.2,2.58374754]
[1772627555375,4.94583087,2037.0,2036.2,2.58374754]
[1772627555795,4.94583087,2037.0,2036.1,1.22778192]
[1772627556293,4.94583087,2037.0,2036.1,6.33998298]
[1772627556495,1.22723479,2037.1,2036.1,6.33998298]
[1772627556691,1.22699386,2037.5,2036.3,5.11220106]
[1772627556987,4.94583087,2037.4,2036.5,5.11220106]
[1772627557692,1.22693631,2037.6,2036.5,5.11220106]
[1772627558089,4.94583087,2037.7,2036.5,5.11220106]
[1772627558409,6.1725237,2038.0,2036.5,5.11220106]
[1772627558585,4.94583087,2037.8,2036.6,6.47020106]
[1772627558785,4.94583087,2037.8,2036.7,5.11220106]
[1772627559114,6.17251237,2038.1,2036.9,5.11220106]
[1772627560214,0.001,2037.1,2036.9,5.11220106]
[1772627560417,6.17251237,2038.1,2036.9,5.11220106]
[1772627561309,6.17251237,2038.1,2037.0,6.3394961]
[1772627561498,6.17251237,2038.1,2037.1,1.36]
[1772627561818,6.17246874,2038.1,2037.2,5.11220106]
[1772627562021,14.15832869,2038.4,2037.2,5.11220106]
[1772627562209,2.88518565,2038.3,2037.2,5.11220106]
[1772627562415,12.64332869,2038.4,2037.2,5.11220106]
[1772627562616,6.17332869,2038.4,2037.2,5.11220106]
[1772627563508,6.17332869,2038.4,2037.3,1.22711431]
[1772627563696,6.17332869,2038.4,2037.3,6.33931537]
[1772627564021,5.39674716,2038.3,2037.3,6.33931537]
[1772627564202,0.45091629,2038.2,2037.3,6.33931537]
[1772627564390,4.94683087,2038.4,2037.3,6.33931537]
[1772627564591,0.450976,2038.3,2037.3,6.33931537]
[1772627564796,4.94683087,2038.4,2037.3,6.33931537]
[1772627564996,0.45097687,2038.3,2037.3,6.33931537]
[1772627565197,4.94683087,2038.4,2037.3,6.33931537]
[1772627565509,5.39718149,2038.3,2037.3,6.33931537]
[1772627565708,0.45135062,2038.2,2037.3,6.33931537]
[1772627566092,4.94583087,2038.3,2037.3,6.33931537]
[1772627566296,2.3151656,2039.1,2037.4,5.11220106]
[1772627566504,1.22597096,2039.2,2037.6,5.11220106]
[1772627566717,0.45156284,2039.1,2037.8,5.11220106]
[1772627566917,0.45156284,2039.0,2037.8,5.11220106]
[1772627567130,1.22597096,2039.2,2037.8,5.11220106]
[1772627567299,0.45149875,2039.1,2037.8,5.11220106]
[1772627567499,6.17175463,2039.3,2037.8,5.11220106]
[1772627567700,0.45114371,2039.2,2038.0,5.11220106]
[1772627568010,0.45114371,2039.1,2038.0,5.11220106]
[1772627568211,6.17175052,2039.3,2038.0,5.11220106]
[1772627568418,0.45084818,2039.2,2038.0,5.11220106]
[1772627568623,4.94583087,2039.3,2038.0,5.11220106]
[1772627568800,0.4507452,2039.2,2038.0,5.11220106]
[1772627568996,4.94583087,2039.3,2038.0,5.11220106]
[1772627569226,5.93573492,2039.6,2038.2,5.10724401]
[1772627569408,5.93555998,2039.9,2038.4,5.10724401]
[1772627569610,0.45036872,2039.8,2038.4,5.10724401]
[1772627569799,4.70996061,2039.9,2038.6,5.10724401]
[1772627570000,9.61147345,2040.2,2038.6,5.10724401]
[1772627570206,0.45030379,2040.1,2038.6,5.10724401]
[1772627570417,9.61147345,2040.2,2038.6,5.10724401]
[1772627570816,0.44972266,2040.1,2038.6,5.10724401]
[1772627571031,9.61147345,2040.2,2038.6,5.10724401]
[1772627571325,4.70996061,2040.0,2038.6,6.46824401]
[1772627571526,4.70996061,2039.8,2038.6,5.10724401]
[1772627571728,5.93563105,2039.7,2038.8,1.22621149]
[1772627571900,1.22564218,2039.8,2038.8,6.3334555]
[1772627572101,4.39644243,2039.9,2038.8,6.3334555]
[1772627572302,3.19642547,2039.9,2038.8,6.3334555]
[1772627572522,1.22555808,2039.9,2038.8,6.3334555]
[1772627572827,1.22552157,2040.0,2038.8,6.3334555]
[1772627573034,1.22552157,2040.0,2038.9,5.10724401]
[1772627573331,1.22537006,2040.2,2038.9,5.40648864]
[1772627573506,1.55357715,2040.4,2038.9,5.40648864]
[1772627573708,1.55357715,2040.4,2039.3,5.10724401]
[1772627573908,1.55357715,2040.4,2039.4,6.46824401]
[1772627574116,1.22529795,2040.4,2039.5,5.10724401]
[1772627574511,1.22523834,2040.5,2039.5,5.10724401]
[1772627576205,4.70996061,2040.4,2039.2,6.33321497]
[1772627577415,4.70996061,2040.4,2039.3,5.10724401]
[1772627578208,5.93521495,2040.4,2039.5,5.10724401]
[1772627578435,9.61038236,2040.7,2039.5,5.10724401]
[1772627578608,4.70996061,2040.6,2039.4,1.22585074]
[1772627580336,5.93515051,2040.5,2039.4,5.10724401]
[1772627580732,4.70996061,2040.4,2039.4,5.10724401]
[1772627581550,4.70996061,2040.7,2039.4,5.82893017]
[1772627581837,4.70996061,2040.7,2039.6,5.10724401]
[1772627582016,5.93503104,2040.7,2039.7,6.46824401]
[1772627582221,5.93503104,2040.7,2039.8,1.22561035]
[1772627582437,5.93503104,2040.7,2039.9,0.38777423]
[1772627582636,5.93503104,2040.7,2039.8,6.33285436]
[1772627583343,4.70996061,2040.8,2039.9,5.10724401]
[1772627583640,4.70996061,2040.8,2039.8,1.57760498]
[1772627583940,4.89985526,2040.9,2039.9,5.88720977]
[1772627584314,4.89985526,2040.9,2040.0,7.11269996]
[1772627584637,4.89985526,2040.9,2040.0,6.3327342]
[1772627584840,4.70996061,2040.8,2040.0,1.61768172]
[1772627585036,0.001,2040.5,2040.0,1.22549019]
[1772627586448,0.001,2040.5,2040.0,6.3327342]
[1772627588053,0.001,2040.5,2040.0,5.10724401]
[1772627588547,0.001,2040.5,2040.0,6.33268646]
[1772627588751,0.001,2040.5,2040.1,0.38777423]
[1772627589057,0.001,2040.5,2040.0,6.72487799]
[1772627589631,0.001,2040.5,2040.0,6.33268646]
[1772627590943,0.001,2040.5,2040.0,1.22544245]
[1772627591148,0.001,2040.5,2040.0,2.58544245]
[1772627592126,0.001,2040.5,2040.1,5.10724401]
[1772627592361,0.001,2040.5,2040.0,2.58544245]
[1772627592558,0.001,2040.5,2040.0,7.69268646]
[1772627592764,4.70996061,2041.5,2040.1,5.10724401]
[1772627593056,5.9343795,2041.8,2040.3,5.10724401]
[1772627593266,0.44914495,2041.7,2040.3,5.10724401]
[1772627593556,0.001,2041.9,2040.7,5.10724401]
[1772627593763,0.001,2041.9,2040.9,5.10724401]
[1772627594329,4.70996061,2042.5,2040.9,5.10724401]
[1772627594330,3.85605654,2042.6,2041.1,5.10724401]
[1772627594532,3.85605654,2042.6,2041.3,5.10724401]
[1772627594749,5.15972628,2042.5,2041.5,5.10724401]
[1772627594960,4.70996061,2042.5,2041.5,5.10724401]
[1772627595330,5.93378912,2042.8,2041.5,5.10724401]
[1772627595531,5.93359136,2043.1,2041.7,5.10724401]
[1772627595736,0.44971953,2043.0,2041.7,5.10724401]
[1772627596038,5.93359136,2043.1,2041.7,5.10724401]
[1772627596239,0.44940401,2043.0,2041.7,5.10724401]
[1772627596437,6.38867149,2043.6,2041.7,5.10724401]
[1772627596438,1.22306885,2044.1,2043.2,5.61081282]
[1772627596663,0.44962646,2044.0,2043.2,5.10724401]
[1772627596958,1.22306885,2044.1,2043.2,5.10724401]
[1772627598276,1.22306885,2044.1,2042.3,1.37359506]
[1772627598277,1.22306885,2044.1,2042.8,5.10724401]
[1772627598573,3.4695626,2043.7,2042.4,5.19013921]
[1772627598871,1.22315181,2043.9,2042.4,5.19013921]
[1772627598872,4.98870354,2043.6,2042.4,5.19013921]
[1772627599179,3.47670354,2043.6,2042.4,5.19013921]
[1772627599946,1.512,2043.8,2042.4,5.19013921]
[1772627600267,5.89619026,2043.9,2042.4,5.19013921]
[1772627600474,5.89619026,2043.9,2042.6,5.19013921]
[1772627600475,4.69619026,2043.9,2042.6,5.19013921]
[1772627600971,1.22315181,2043.9,2042.6,5.19013921]
[1772627601373,4.69620717,2043.9,2042.6,5.19013921]
[1772627602677,1.22297231,2044.2,2042.8,5.19013921]
[1772627604076,0.001,2044.4,2043.0,4.99030934]
[1772627604375,0.001,2044.4,2043.2,4.99030934]
[1772627604550,0.001,2044.4,2043.4,6.21376045]
[1772627606856,0.001,2044.4,2043.4,4.99030934]
[1772627607051,3.45339003,2044.4,2043.1,1.22363075]
[1772627607252,1.2,2044.2,2043.1,1.22363075]
[1772627607482,4.65239003,2044.2,2043.1,1.22363075]
[1772627608003,3.44825223,2044.1,2043.0,6.21396453]
[1772627608183,3.44825223,2044.1,2043.0,1.22365519]
[1772627608955,1.22309197,2044.0,2042.9,4.89483465]
[1772627609158,1.22309197,2044.0,2042.9,1.22375055]
[1772627609159,3.44407827,2043.9,2042.9,1.22375055]
[1772627609584,3.44407827,2043.9,2043.2,0.0011]
[1772627610890,4.96307827,2043.9,2043.2,0.0011]
[1772627611069,1.22321166,2043.8,2043.2,0.0011]
[1772627612367,4.64985369,2043.8,2043.2,0.0011]
[1772627612694,3.42664203,2043.7,2043.2,0.0011]
[1772627613288,4.64572441,2043.6,2043.2,0.0011]
[1772627614211,1.2233041,2043.7,2043.2,0.0011]
[1772627614506,2.74303214,2044.1,2043.2,0.0011]
[1772627614807,1.22303214,2044.1,2043.2,4.99140934]
[1772627615378,4.89312856,2044.2,2043.3,1.22351098]
[1772627616740,3.40867312,2044.1,2043.2,1.22462189]
[1772627617097,3.40867312,2044.1,2043.2,0.0011]
[1772627617410,2.42309197,2044.0,2043.2,0.0011]
[1772627617782,5.82722537,2044.0,2043.2,0.0011]
[1772627617990,3.4041334,2043.9,2043.2,0.0011]
[1772627619505,1.22321166,2043.8,2043.2,0.0011]
[1772627621380,1.22321166,2043.8,2043.4,0.0011]
[1772627621712,0.001,2043.6,2043.4,0.0011]
[1772627622109,0.56,2045.0,2043.6,4.99030934]
[1772627622408,1.22362248,2044.8,2043.6,4.99030934]
[1772627622609,0.001,2044.8,2043.6,4.99030934]
[1772627623907,0.45110645,2044.7,2043.8,4.99030934]
[1772627624107,0.001,2044.8,2043.8,4.99030934]
[1772627624313,0.45134357,2044.7,2043.8,4.99030934]
[1772627624500,0.001,2044.8,2043.8,4.99030934]
[1772627624699,0.45136795,2044.7,2043.9,6.36330934]
[1772627624901,0.001,2044.8,2043.5,4.99030934]
[1772627624902,3.90248713,2044.6,2043.5,4.99030934]
[1772627625104,0.45136795,2044.5,2043.5,4.99030934]
[1772627625411,0.45136795,2044.4,2043.4,6.21482909]
[1772627625613,0.45136795,2044.3,2043.4,6.21482909]
[1772627625814,1.22303214,2044.1,2043.4,7.58782909]
[1772627626010,0.45136795,2044.0,2043.4,7.58782909]
[1772627626212,1.22292149,2044.3,2043.5,4.99030934]
[1772627626420,0.451954,2044.2,2043.5,4.99030934]
[1772627626591,0.451954,2044.1,2043.4,0.0011]
[1772627626797,0.451954,2044.0,2043.4,1.2245464]
[1772627626992,0.451954,2043.9,2043.4,0.0011]
[1772627627312,0.451954,2043.8,2043.4,0.0011]
[1772627627502,0.451954,2043.7,2043.4,1.22453617]
[1772627627811,0.451954,2043.6,2043.4,0.0011]
[1772627628113,1.22325606,2043.8,2043.4,0.0011]
[1772627628315,0.45184133,2043.7,2043.4,0.0011]
[1772627628612,0.45184133,2043.6,2043.4,0.0011]
[1772627628807,1.22325606,2043.8,2043.4,0.0011]
[1772627629004,0.45194444,2043.7,2043.4,0.0011]
[1772627629228,0.45194444,2043.6,2043.4,0.0011]
[1772627629413,1.22325606,2043.8,2043.4,0.0011]
[1772627629589,0.45204049,2043.7,2043.4,0.0011]
[1772627629917,1.67541266,2043.6,2043.4,0.0011]
[1772627630093,0.45204049,2043.5,2043.4,0.0011]
[1772627630495,1.22297231,2044.2,2043.4,0.0011]
[1772627630901,1.22297231,2044.2,2043.4,4.82206262]
[1772627632823,1.22297231,2044.2,2043.5,1.22339124]
[1772627633491,1.22297231,2044.2,2043.4,4.82206262]
[1772627633691,1.22297231,2044.2,2043.4,6.04550714]
[1772627633916,1.22297231,2044.2,2043.6,0.0011]
[1772627638594,2.74495177,2044.3,2043.6,4.82206262]
[1772627639259,2.74495177,2044.3,2043.6,6.04534548]
[1772627639913,1.22295177,2044.3,2043.6,6.04534548]
[1772627641429,4.89250191,2044.4,2043.6,6.04534548]
[1772627642035,4.89250191,2044.4,2043.7,4.82096262]
[1772627642531,4.89250191,2044.4,2043.6,0.0011]
[1772627642532,0.45264359,2044.3,2043.6,0.0011]
[1772627642734,0.45264359,2044.2,2043.6,0.0011]
[1772627642904,0.45264359,2044.1,2043.6,1.224419]
[1772627643110,0.45264359,2044.0,2043.6,1.224419]
[1772627643304,0.45264359,2043.9,2043.6,1.224419]
[1772627643510,0.45264359,2043.8,2043.6,0.0011]
[1772627643739,1.22309805,2044.0,2043.6,0.0011]
[1772627644051,1.22294329,2044.3,2043.6,4.82206262]
[1772627644333,1.22385989,2044.4,2043.6,4.82206262]
[1772627644502,5.84548128,2044.4,2043.6,4.82206262]
[1772627644706,4.61695284,2044.3,2043.6,0.0011]
[1772627645308,4.61695284,2044.1,2043.6,0.0011]
[1772627645608,5.84004481,2044.0,2043.4,0.0011]
[1772627646042,1.22309197,2044.0,2043.6,0.0011]
[1772627648136,4.8923679,2044.1,2043.6,0.0011]
[1772627648439,4.61561841,2044.0,2043.6,0.0011]
[1772627650102,1.22315181,2043.9,2043.6,0.0011]
[1772627650306,1.22315181,2043.9,2043.4,0.0011]
[1772627650706,5.82409494,2043.9,2043.4,0.0011]
[1772627651352,1.22315181,2043.9,2043.4,0.0011]
[1772627652114,4.8923679,2044.1,2043.4,0.0011]
[1772627652338,4.8923679,2044.1,2043.4,4.82206262]
[1772627652813,1.22291248,2044.3,2043.4,4.82206262]
[1772627653016,1.22291248,2044.3,2043.5,4.82096262]
[1772627654107,9.47478034,2044.4,2043.5,6.04430461]
[1772627655009,4.57733496,2044.3,2043.4,0.0011]
[1772627655648,4.57733496,2044.3,2043.4,1.22455098]
[1772627656042,0.45376142,2044.2,2043.4,6.0455136]
[1772627656344,1.22309197,2044.0,2043.4,6.0455136]
[1772627656531,0.45376142,2043.9,2043.4,6.0455136]
[1772627656715,0.45376142,2043.8,2043.4,4.82206262]
[1772627656912,0.45376142,2043.7,2043.4,4.82206262]
[1772627657129,0.45376142,2043.6,2043.4,4.82206262]
[1772627657422,1.22309197,2044.0,2043.4,0.0011]
[1772627657423,0.4539307,2043.5,2043.4,0.0011]
[1772627658116,1.67732194,2043.5,2043.4,0.0011]
[1772627658313,0.4539307,2043.5,2043.4,0.0011]
[1772627658621,1.67732194,2043.5,2043.4,0.0011]
[1772627659723,0.4539307,2043.5,2043.4,0.0011]
[1772627659926,1.22323155,2043.8,2043.4,0.0011]
[1772627660530,4.89284665,2043.9,2043.4,0.0011]
[1772627661452,4.89284665,2043.9,2043.4,4.73248827]
[1772627661651,0.001,2044.2,2043.4,4.73248827]
[1772627661652,1.22403214,2044.2,2043.4,4.73248827]
[1772627661947,4.89225472,2044.1,2043.4,4.73248827]
[1772627662747,4.89225472,2044.1,2043.4,5.95592751]
[1772627662748,4.56245389,2044.1,2043.4,5.95592751]
[1772627663347,4.56245389,2044.1,2043.4,4.73248827]
[1772627663544,4.56245389,2044.1,2043.4,0.0011]
[1772627665022,1.22309197,2044.0,2043.4,0.0011]
[1772627666547,5.77175805,2044.0,2043.4,0.0011]
[1772627667143,4.54315935,2043.9,2043.4,0.0011]
[1772627668356,4.54315935,2043.9,2043.2,4.75349703]
[1772627668357,4.54315935,2043.9,2043.2,0.0011]
[1772627668530,5.36375179,2043.8,2043.2,0.0011]
[1772627668722,4.53478979,2043.6,2043.1,0.0011]
[1772627668923,4.53478979,2043.5,2043.1,0.0011]
[1772627669335,1.22345111,2043.4,2043.1,0.0011]
[1772627670424,1.22343734,2043.5,2043.1,4.75349703]
[1772627670728,2.32547299,2043.8,2043.4,0.0011]
[1772627670729,4.89308823,2043.7,2043.4,0.0011]
[1772627671636,1.22427151,2043.8,2043.4,0.0011]
[1772627671835,0.45367928,2043.7,2043.4,0.0011]
[1772627672041,0.45367928,2043.6,2043.4,0.0011]
[1772627672234,0.45367928,2043.5,2043.4,0.0011]
[1772627673936,1.67707052,2043.5,2043.4,0.0011]
[1772627676332,1.57882195,2043.5,2043.4,0.0011]
[1772627676538,0.001,2043.8,2043.5,4.75239703]
[1772627676809,2.32547299,2044.2,2043.5,4.75239703]
[1772627676810,1.22400906,2044.2,2043.5,4.75239703]
[1772627677059,1.22397524,2044.2,2043.5,4.75239703]
[1772627678564,1.22397524,2044.2,2043.6,5.9757284]
[1772627678565,0.001,2044.2,2043.6,5.9757284]
[1772627680273,0.001,2044.2,2043.7,4.75239703]
[1772627680882,1.2226988,2044.7,2044.0,4.75239703]
[1772627681349,6.01478184,2044.7,2044.0,4.75239703]
[1772627683274,4.77641158,2044.6,2043.6,4.75239703]
[1772627684959,4.77641158,2044.6,2043.8,4.75239703]
[1772627684960,1.22279285,2044.5,2043.8,4.75239703]
[1772627685483,4.8908643,2044.7,2043.8,4.75239703]
[1772627687059,0.001,2044.8,2044.0,4.75239703]
[1772627687982,4.73819518,2044.8,2043.7,4.75239703]
[1772627688560,5.1819184,2044.7,2043.7,4.75239703]
[1772627688761,0.45248503,2044.6,2043.7,4.75239703]
[1772627688962,0.45248503,2044.5,2043.7,4.75239703]
[1772627689259,1.22279028,2044.6,2043.9,4.6670573]
[1772627689573,0.45239286,2044.5,2043.9,4.6670573]
[1772627689774,1.22271768,2044.7,2043.9,4.6670573]
[1772627690089,0.45242992,2044.6,2044.0,4.6670573]
[1772627690383,1.22271768,2044.7,2044.0,4.6670573]
[1772627690589,0.45231989,2044.6,2044.0,4.6670573]
[1772627690790,1.22271768,2044.7,2044.0,4.6670573]
[1772627690990,0.45232057,2044.6,2044.0,4.6670573]
[1772627691296,4.71576101,2044.8,2044.1,4.6670573]
[1772627691493,0.45221197,2044.7,2044.1,4.6670573]
[1772627691665,0.45221197,2044.6,2044.1,4.6670573]
[1772627691858,4.71576101,2044.8,2044.1,4.6670573]
[1772627692058,0.4522233,2044.7,2044.1,4.6670573]
[1772627692264,0.4522233,2044.6,2044.1,4.6670573]
[1772627692458,4.71576101,2044.8,2044.1,4.6670573]
[1772627692706,0.45208108,2044.7,2044.1,4.6670573]
[1772627692864,0.45208108,2044.6,2044.1,4.6670573]
[1772627693064,4.71576101,2044.8,2044.1,4.6670573]
[1772627693366,1.22273305,2044.6,2044.1,4.6670573]
[1772627693571,0.45203139,2044.5,2043.9,5.8902061]
[1772627693769,5.91069797,2044.6,2043.9,5.8902061]
[1772627693971,0.45200819,2044.5,2043.9,5.8913061]
[1772627694184,5.91169797,2044.6,2043.9,5.8913061]
[1772627694385,0.45197042,2044.5,2043.9,4.6681573]
[1772627694580,5.91169797,2044.6,2043.9,4.6681573]
[1772627694782,0.4519701,2044.5,2043.9,5.89129674]
[1772627695068,5.91169797,2044.6,2044.0,4.6670573]
[1772627695268,0.45197733,2044.5,2044.0,4.6670573]
[1772627695482,5.91169797,2044.6,2044.0,5.89009592]
[1772627695708,0.45194858,2044.5,2044.0,5.89009592]
[1772627695993,1.22373305,2044.6,2044.0,5.89009592]
[1772627696364,1.22373305,2044.6,2044.1,4.6670573]
[1772627697385,5.88163586,2044.6,2043.9,0.0011]
[1772627697699,0.45191237,2044.5,2043.9,0.0011]
[1772627697894,5.88163586,2044.6,2043.9,0.0011]
[1772627698191,0.45192339,2044.5,2043.9,4.6681573]
[1772627698508,4.65031466,2044.3,2043.9,0.0011]
[1772627698706,7.3864743,2044.6,2043.9,4.6681573]
[1772627698911,0.45190122,2044.5,2043.9,4.6681573]
[1772627699074,0.45190122,2044.4,2043.9,4.6681573]
[1772627699274,2.74373305,2044.6,2043.9,4.6681573]
[1772627699577,1.22285267,2044.4,2044.0,4.6670573]
[1772627700175,4.89129028,2044.5,2044.0,4.6670573]
[1772627700176,1.22283697,2044.5,2044.0,4.6670573]
[1772627700587,0.45246501,2044.4,2044.0,4.6670573]
[1772627700796,1.521,2044.6,2044.0,4.6670573]
[1772627701000,1.22361884,2044.8,2044.0,4.6670573]
[1772627701171,1.22361595,2044.8,2044.0,4.6670573]
[1772627701373,0.001,2044.8,2044.0,4.6670573]
[1772627701594,0.001,2044.8,2044.2,4.6670573]
[1772627701873,0.001,2044.8,2044.4,4.6670573]
[1772627702072,0.001,2044.8,2044.3,1.349]
[1772627702702,0.001,2044.8,2044.2,4.6670573]
[1772627702871,0.001,2044.8,2043.9,5.89127348]
[1772627702872,5.04787882,2044.8,2043.9,5.89127348]
[1772627703201,5.04787882,2044.8,2044.0,4.6670573]
[1772627703703,0.001,2044.8,2044.2,4.6670573]
[1772627703884,1.22362403,2044.8,2044.2,4.6670573]
[1772627704891,1.22361559,2044.8,2044.2,4.6670573]
[1772627705300,0.001,2044.8,2044.2,4.6670573]
[1772627705515,0.001,2044.8,2044.4,4.6670573]
[1772627707686,5.0413839,2044.8,2044.0,4.6670573]
[1772627708998,0.001,2044.8,2044.0,4.6670573]
[1772627710079,0.001,2044.8,2044.1,1.22303214]
[1772627710306,0.001,2044.8,2044.1,5.89008944]
[1772627710691,0.001,2044.8,2044.2,4.6670573]
[1772627711809,0.56,2045.0,2044.2,4.6670573]
[1772627712011,5.01645793,2044.9,2044.0,5.89010869]
[1772627712307,6.79895234,2045.0,2044.1,4.6670573]
[1772627712697,1.78249441,2045.0,2044.1,4.6670573]
[1772627713095,0.45377579,2044.9,2044.1,4.6670573]
[1772627713411,0.45377579,2044.9,2043.9,4.89358769]
[1772627713412,5.46308872,2044.8,2043.9,5.89130682]
[1772627713600,0.45377579,2044.7,2044.0,4.6670573]
[1772627713803,0.45377579,2044.6,2044.0,4.6670573]
[1772627714111,0.45377579,2044.5,2044.0,5.89011303]
[1772627714307,0.45377579,2044.4,2044.0,5.89011303]
[1772627714606,1.22271538,2044.7,2044.1,4.6670573]
[1772627714808,1.522,2044.9,2044.2,4.6670573]
[1772627714809,0.4544664,2044.6,2044.2,4.6670573]
[1772627715109,0.4544664,2044.5,2044.2,4.6670573]
[1772627715415,1.22260313,2044.9,2044.2,4.6670573]
[1772627715616,5.44948674,2044.8,2044.0,2.57405573]
[1772627715789,0.45451527,2044.7,2044.0,7.24111303]
[1772627715996,0.45451527,2044.6,2044.1,4.6670573]
[1772627716193,1.78249401,2045.0,2044.1,4.6670573]
[1772627716394,0.4545023,2044.9,2044.1,4.6670573]
[1772627716712,0.4545023,2044.8,2044.1,4.6670573]
[1772627716885,0.4545023,2044.7,2044.1,4.6670573]
[1772627717085,1.78249651,2045.0,2044.1,4.6670573]
[1772627717312,0.45428201,2044.9,2044.1,4.6670573]
[1772627717611,0.45428201,2044.8,2044.1,4.6681573]
[1772627717805,1.78249651,2045.0,2044.1,4.6681573]
[1772627718006,0.001,2044.6,2044.3,4.6670573]
[1772627719107,0.001,2044.6,2044.5,4.66535595]
[1772627720113,0.001,2044.6,2044.5,5.8881488]
[1772627720500,0.001,2044.6,2044.3,4.66535595]
[1772627720702,0.45413457,2044.5,2044.2,1.353]
[1772627720907,0.001,2044.6,2044.2,1.353]
[1772627721217,0.45413376,2044.5,2044.2,1.353]
[1772627721386,0.001,2044.6,2044.2,1.353]
[1772627721686,0.45415454,2044.5,2044.1,5.88944634]
[1772627721882,0.001,2044.6,2044.1,5.88944634]
[1772627722213,0.45413547,2044.5,2044.1,5.88944634]
[1772627722518,1.2237846,2044.6,2044.1,5.88944634]
[1772627722519,0.45396209,2044.4,2044.1,5.88944634]
[1772627722721,1.2237846,2044.6,2044.1,4.66645595]
[1772627722887,0.45394416,2044.5,2044.1,4.66645595]
[1772627723092,1.2237846,2044.6,2044.2,4.92450619]
[1772627723093,0.001,2044.6,2044.2,4.92450619]
[1772627723413,7.21537828,2045.1,2044.2,4.92450619]
[1772627723414,1.78252363,2045.0,2044.2,4.92450619]
[1772627723616,1.78250802,2045.0,2044.2,4.92450619]
[1772627723792,0.56,2045.0,2044.2,4.92450619]
[1772627724116,0.56,2045.0,2044.4,4.92450619]
[1772627724417,0.56,2045.0,2044.6,4.92450619]
[1772627725915,1.78249497,2045.0,2044.6,4.92450619]
[1772627727118,1.78249971,2045.0,2044.6,6.14720215]
[1772627727310,1.78249971,2045.0,2044.6,4.92450619]
[1772627727612,1.78249971,2045.0,2044.6,6.14723741]
[1772627727815,0.56,2045.0,2044.6,6.14723741]
[1772627728422,6.4639678,2045.0,2044.4,6.28250619]
[1772627728808,1.78249959,2045.0,2044.4,6.28250619]
[1772627729019,1.78249959,2045.0,2044.5,4.92450619]
[1772627729210,0.56,2045.0,2044.5,4.92450619]
[1772627729613,1.22241436,2045.2,2044.6,4.92450619]
[1772627730605,0.001,2044.8,2044.6,4.92450619]
[1772627730809,1.22241436,2045.2,2044.7,4.92450619]
[1772627731016,5.90388257,2045.2,2044.6,1.359]
[1772627731221,5.90388257,2045.2,2044.5,4.92560619]
[1772627731426,4.68146821,2045.1,2044.5,6.28460619]
[1772627732424,4.68146821,2045.0,2044.3,0.0011]
[1772627732609,4.68146821,2044.9,2044.3,0.0011]
[1772627733432,1.22261345,2044.8,2044.3,0.0011]
[1772627733635,5.90408166,2044.8,2044.3,0.0011]
[1772627733849,5.90408166,2044.8,2044.1,0.0011]
[1772627733850,4.68146821,2044.5,2044.1,0.0011]
[1772627734633,4.68146821,2044.3,2044.0,0.0011]
[1772627735205,5.13456122,2044.2,2044.0,0.0011]
[1772627735428,5.13456122,2044.1,2043.9,0.0011]
[1772627735645,4.68146821,2043.9,2043.2,0.0011]
[1772627735804,4.68146821,2043.7,2043.2,0.0011]
[1772627736141,4.63395935,2043.9,2043.2,0.0011]
[1772627736142,4.68146821,2043.5,2043.2,0.0011]
[1772627736336,0.45309301,2043.4,2043.2,0.0011]
[1772627736521,0.45309301,2043.3,2043.2,0.0011]
[1772627737708,1.67660399,2043.3,2043.2,0.0011]
[1772627738246,1.22351098,2043.3,2043.2,0.0011]
[1772627738713,1.67441607,2043.3,2043.2,0.0011]
[1772627739110,1.22351098,2043.3,2043.2,0.0011]
[1772627739703,4.89387633,2043.4,2043.2,0.0011]
[1772627739900,4.68146821,2043.3,2042.1,6.14873614]
[1772627740146,4.68146821,2043.3,2041.8,4.92450619]
[1772627740147,5.13184696,2043.2,2041.8,4.92450619]
[1772627740439,4.68146821,2043.0,2041.8,4.92450619]
[1772627740601,4.68146821,2042.8,2041.8,4.92450619]
[1772627740799,0.45037875,2042.7,2041.8,4.92450619]
[1772627741002,1.525,2042.9,2041.8,4.92450619]
[1772627741643,6.20646821,2042.9,2041.8,4.92450619]